Cogmind - Beta 13 @@@ ROGUE MODE // 2024.05.03 @ 21:40:40 Player: BrainTooSmol Result: Destroyed by YI-UF0 with YI-UF0's Doublenader Performance ------------- Evolutions (0) 0 Regions Visited (4) 800 Robots Destroyed (46) 230 Value Destroyed (913) 913 Prototype IDs (0) 0 Alien Tech Used (0) 0 Bonus (27) 27 TOTAL SCORE: 1970 Bonus ------- Follower Combat Kills 85 Friendly Fire -58 Cogmind --------- Core Integrity 0/250 Matter 152/300 Energy 74/100 System Corruption 12% Temperature Cool (0) Movement Rolling (140) Ox4 Location -9/Mines Parts ------- > --- POWER (1) -------- (None) > --- PROPULSION (2) --- Wheel > --- UTILITY (2) ------ High-capacity Storage Unit Medium Armor Plating > --- WEAPON (2) ------- Heavy Assault Rifle > --- INVENTORY (20) --- Light Treads Wheel Wheel Flight Unit Flight Unit Flight Unit Flight Unit Small Storage Unit Weight Redist. System Sensor Array Signal Interpreter Seismic Detector Hacking Suite Heavy Assault Rifle Heavy Assault Rifle Mining Laser Peak State ------------ > --- POWER ------------ Ion Engine > --- PROPULSION ------- Wheel Wheel > --- UTILITY ---------- High-capacity Storage Unit Medium Armor Plating > --- WEAPON ----------- Heavy Assault Rifle Heavy Assault Rifle > --- INVENTORY -------- Light Treads Wheel Flight Unit Flight Unit Flight Unit Flight Unit Small Storage Unit Weight Redist. System Sensor Array Medium Armor Plating Medium Armor Plating Medium Armor Plating Hacking Suite Heavy Assault Rifle Heavy Assault Rifle Grenade Launcher Grenade Launcher Mining Laser [Rating: 12] Favorites ----------- Power Ion Engine Engine Ion Engine Propulsion Wheel Leg Aluminum Leg Wheel Wheel Utility High-capacity Storage Unit Device Seismic Detector Storage High-capacity Storage Unit Protection Medium Armor Plating Weapon Heavy Assault Rifle Energy Gun Medium Laser Ballistic Gun Heavy Assault Rifle Launcher Grenade Launcher Special Weapon Mining Laser Build | -11 -10 -10 -10 -9 ------- Run | Yrd Mat Min Exi Min Slots Evolved . | . . . . . Power . | . . . . . Propulsion . | . . . . . Utility . | . . . . . Weapon . | . . . . . Parts Attached 42 | 1 14 21 . 6 Power 3 | . 2 1 . . Engine 3 | . 2 1 . . Core . | . . . . . Reactor . | . . . . . Propulsion 11 | . 7 4 . . Treads . | . . . . . Leg . | . . . . . Wheel 11 | . 7 4 . . Hover . | . . . . . Flight . | . . . . . Utility 10 | 1 3 4 . 2 Device 3 | 1 1 1 . . Storage 2 | . 2 . . . Processor . | . . . . . Hackware . | . . . . . Protection 5 | . . 3 . 2 Artifact . | . . . . . Weapon 18 | . 2 12 . 4 Energy Gun . | . . . . . Energy Cannon . | . . . . . Ballistic Gun 12 | . 2 8 . 2 Ballistic Cannon . | . . . . . Launcher 2 | . . . . 2 Special Weapon 4 | . . 4 . . Impact Weapon . | . . . . . Slashing Weapon . | . . . . . Piercing Weapon . | . . . . . Special Melee Weapon . | . . . . . Unidentified Prototypes . | . . . . . Parts Lost 13 | . 3 3 . 7 Power 4 | . 2 1 . 1 Propulsion 2 | . 1 . . 1 Utility 4 | . . 2 . 2 Weapon 3 | . . . . 3 Highest Loss Streak 7 | . 2 1 . 7 To Critical Strikes . | . . . . . Average Slot Usage (%) 96 | . 99 91 100 97 Engine 12 | . 13 11 14 13 Wheel 27 | . 26 27 28 27 Device 7 | . 14 . . . Storage 14 | . 14 14 14 14 Protection 4 | . . 8 14 14 Ballistic Gun 26 | . 27 26 28 25 Naked Turns . | . . . . . Heaviest Build 58 | 12 52 58 58 58 Greatest Support 20 | 20 20 20 20 20 Greatest Overweight (x) 5 | . 2 5 2 5 Average Overweight (x) 1 | . 1 2 2 2 Largest Inventory Capacity 20 | 8 20 20 20 20 Average Capacity 19 | 8 18 20 20 20 Most Carried 20 | 7 20 20 20 20 Average Carried 16 | 6 14 19 20 19 Final Capacity 20 | 8 20 20 20 20 Final Carried 20 | 7 19 20 20 16 Class Distribution -------------------- 100% | Mutant Dominant Class ---------------- Mutant | -10/Materials Mutant | -10/Mines Mutant | -10/Exiles Mutant | -9/Mines Resources | -11 -10 -10 -10 -9 ----------- Run | Yrd Mat Min Exi Min Matter Collected 1491 | 199 601 676 15 . Remotely . | . . . . . Salvage Created 1407 | 23 589 757 . 38 Parts 92 | 3 50 39 . . Haulers Intercepted 2 | . 2 . . . Recyclers Shooed . | . . . . . Parts Field Recycled . | . . . . . Retrieved Matter . | . . . . . Parts Self-Destructed . | . . . . . Prevented . | . . . . . Kills | -11 -10 -10 -10 -9 ------- Run | Yrd Mat Min Exi Min Combat Hostiles Destroyed 41 | . 14 18 . 9 Guns 33 | . 14 18 . 1 AOE 8 | . . . . 8 Classes Destroyed 9 | 1 7 1 . . Worker 3 | . 2 1 . . Tunneler 5 | 1 . 4 . . Hauler 2 | . 2 . . . Mechanic 1 | . 1 . . . Operator 2 | . 2 . . . Watcher 3 | . 3 . . . Swarmer 12 | . 9 3 . . Grunt 18 | . 5 13 . . Assembled 11 | . . 2 . 9 Best Kill Streak 9 | 1 3 7 . 9 Combat Bots Only 9 | . 3 7 . 9 Max Kills in Single Turn 4 | 1 2 1 . 4 Gunslinging 1 | . 1 . . . Exploded 4 | . . . . 4 Melee . | . . . . . Uniques/NPCs Destroyed . | . . . . . Combat | -11 -10 -10 -10 -9 -------- Run | Yrd Mat Min Exi Min Hostile Shots Fired 161 | . 42 80 . 39 Missed 34 | . 9 18 . 7 Damage Taken 1800 | . 312 823 . 665 Core 258 | . 47 122 . 89 Absorbed by Shields . | . . . . . Core Remaining (%) 100 | 100 . . . . Volleys Fired 151 | 3 53 87 . 8 Largest 2 | 2 2 2 . 2 Hottest 123 | 70 46 123 . 60 Shots Fired 286 | 6 106 159 . 15 Gun 259 | 6 106 140 . 7 Cannon . | . . . . . Launcher 8 | . . . . 8 Special 19 | . . 19 . . Kinetic 256 | 3 106 140 . 7 Thermal 22 | 3 . 19 . . Explosive 8 | . . . . 8 Electromagnetic . | . . . . . Robot Hit Streak 15 | 5 8 15 . 7 Robot Miss Streak 5 | . 5 5 . 1 Penetration Max . | . . . . . Secondary Targets 9 | . 1 7 . 1 Max Gunslinging Chain 1 | . 1 1 . 1 Shots Hit Robots 169 | 5 65 90 . 9 Core Hits 85 | 1 28 35 . 21 Critical Kills 1 | . . 1 . . Critical Parts Destroyed 2 | . 1 1 . . Critical Strikes 3 | . 1 2 . . Destroy 3 | . 1 2 . . Melee Attacks . | . . . . . Impact . | . . . . . Slashing . | . . . . . Piercing . | . . . . . Sneak Attacks . | . . . . . Combat Hostiles . | . . . . . Follow-up Attacks . | . . . . . Damage Inflicted 3161 | 53 1037 1498 . 573 Guns 2654 | 53 1037 1498 . 66 Cannons . | . . . . . Explosions 507 | . . . . 507 Melee . | . . . . . Ramming . | . . . . . Kinetic 2617 | 16 1037 1498 . 66 Thermal 37 | 37 . . . . Explosive 507 | . . . . 507 Electromagnetic . | . . . . . Impact . | . . . . . Slashing . | . . . . . Piercing . | . . . . . Highest Corruption 12 | . 8 12 12 12 Average Corruption 8 | . 6 10 12 12 Corruption Purged . | . . . . . Corruption Blocked . | . . . . . Effects 103 | . 39 51 8 5 Message Errors 21 | . 9 9 1 2 Matter Fused 19 | . 7 7 2 3 Heat Flow Errors 12 | . 7 5 . . Energy Discharges 18 | . 4 11 3 . Parts Rejected 2 | . . 2 . . Parts Fused 2 | . . 2 . . Data Loss (minor) 10 | . 4 6 . . Data Loss (major) 8 | . 2 4 2 . Misfires 5 | . 2 3 . . Alerts 3 | . 2 1 . . Weapon Failures 3 | . 2 1 . . Overload Shots . | . . . . . Overflow Damage 1 | . . . . 1 Projectiles . | . . . . . Explosions 1 | . . . . 1 Melee . | . . . . . Knockbacks . | . . . . . Impact . | . . . . . Kinetic . | . . . . . Secondary . | . . . . . Self-Inflicted Damage 2 | . . . . 2 Shots 1 | . . . . 1 Rammed . | . . . . . Targets Rammed . | . . . . . Kicked . | . . . . . Crushed . | . . . . . Highest Temperature 260 | 50 239 260 . 82 Average Temperature 47 | 26 85 34 . 40 Received Heat Transfer 510 | . 66 264 . 180 Siege Activations . | . . . . . Robots Corrupted . | . . . . . Combat Hostiles . | . . . . . Parts Fried . | . . . . . Impact Corruptions . | . . . . . Robots Melted . | . . . . . Combat Hostiles . | . . . . . Parts Melted . | . . . . . Heat Transferred 111 | 111 . . . . Parts Sabotaged . | . . . . . Parts Stolen . | . . . . . Parts Stripped . | . . . . . Power Chain Reactions . | . . . . . Alert | -11 -10 -10 -10 -9 ------- Run | Yrd Mat Min Exi Min Peak Influence 260 | 5 260 242 . 26 Initial 42 | . 3 42 . . Average 108 | 2 108 124 . 1 Maximum Alert Level 1 | . 1 1 . . Low Security (%) 86 | 100 90 78 . 100 Level 1 13 | . 9 21 . . Level 2 . | . . . . . Level 3 . | . . . . . Level 4 . | . . . . . Level 5 . | . . . . . High Security . | . . . . . Max Security . | . . . . . Squads Dispatched 2 | . 1 1 . . Investigation . | . . . . . Extermination . | . . . . . Reinforcement 1 | . 1 . . . Assault 1 | . . 1 . . Garrison . | . . . . . Intercept . | . . . . . Searches Triggered . | . . . . . Construction Impeded . | . . . . . Haulers Reinforced . | . . . . . Active Scanning Responses . | . . . . . Cargo Convoy Interrupts . | . . . . . Stealth | -11 -10 -10 -10 -9 --------- Run | Yrd Mat Min Exi Min Distress Signals 4 | . 4 . . . Communications Jammed . | . . . . . Distress Signals . | . . . . . Times Spotted 65 | . 31 21 . 13 Peak Tracking Total 11 | . 4 5 . 11 Tactical Retreats 1 | . . 1 . . Traps | -11 -10 -10 -10 -9 ------- Run | Yrd Mat Min Exi Min Traps Triggered 6 | . 6 . . . Indirectly . | . . . . . Trap Hack Attempts . | . . . . . Triggered . | . . . . . Disarmed . | . . . . . Reprogrammed . | . . . . . Reused . | . . . . . Traps Extracted . | . . . . . Installed . | . . . . . Triggered . | . . . . . Machines | -11 -10 -10 -10 -9 ---------- Run | Yrd Mat Min Exi Min Machines Disabled 2 | . . 2 . . Max in Single Turn 1 | . . 1 . . Machines Repaired . | . . . . . Machines Dismantled . | . . . . . Machines Sabotaged . | . . . . . Overloaded Fab Kills . | . . . . . Hacking | -11 -10 -10 -10 -9 --------- Run | Yrd Mat Min Exi Min Machines Accessed 10 | . 9 . 1 . Terminals 7 | . 7 . . . Fabricators . | . . . . . Repair Stations . | . . . . . Recycling Units 2 | . 2 . . . Scanalyzers . | . . . . . Garrison Access . | . . . . . Total Hacks 17 | . 16 . 1 . Successful 11 | . 10 . 1 . Failed 5 | . 5 . . . Catastrophic . | . . . . . Database Lockouts 1 | . 1 . . . Manual 13 | . 13 . . . Terminals 12 | . 12 . . . Fabricators . | . . . . . Repair Stations . | . . . . . Recycling Units 4 | . 4 . . . Scanalyzers . | . . . . . Garrison Access . | . . . . . Terminal Hacks 5 | . 4 . 1 . Record 1 | . . . 1 . Part Schematic 2 | . 2 . . . Robot Analysis 1 | . 1 . . . Hauler Manifests 1 | . 1 . . . Fabricator Hacks . | . . . . . Repair Station Hacks . | . . . . . Recycling Unit Hacks 2 | . 2 . . . Retrieve Components 2 | . 2 . . . Scanalyzer . | . . . . . Garrison Access Hacks . | . . . . . Unauthorized Hacks 4 | . 4 . . . Terminals 2 | . 2 . . . Botnet 2 | . 2 . . . Fabricators . | . . . . . Repair Stations . | . . . . . Recycling Units 2 | . 2 . . . Reject 1 | . 1 . . . Mask 1 | . 1 . . . Scanalyzers . | . . . . . Garrison Access . | . . . . . Data Cores Recovered 1 | . 1 . . . Used . | . . . . . Hacking Detections 4 | . 4 . . . Full Trace Events 1 | . 1 . . . Feedback Events . | . . . . . Feedback Blocked . | . . . . . Robot Schematics Acquired . | . . . . . Robots Built . | . . . . . Authchips . | . . . . . Time . | . . . . . Total Robot Build Rating . | . . . . . Part Schematics Acquired 2 | . 2 . . . Parts Built . | . . . . . Authchips . | . . . . . Time . | . . . . . Total Part Build Rating . | . . . . . Parts Repaired . | . . . . . Time . | . . . . . Parts Recycled . | . . . . . Recycled Matter . | . . . . . Retrieved Matter . | . . . . . Retrieved Components 20 | . 20 . . . Parts Scanalyzed . | . . . . . Part Schematics Acquired . | . . . . . Parts Damaged . | . . . . . Bothacking | -11 -10 -10 -10 -9 ------------ Run | Yrd Mat Min Exi Min Used RIF Installer . | . . . . . Robots Hacked . | . . . . . Non-combat . | . . . . . Combat . | . . . . . Robot Hacks Applied . | . . . . . Relay Couplers Released . | . . . . . Fabnet Peak Effective % . | . . . . . Robots Rewired . | . . . . . Allies Hacked . | . . . . . Hacks Repelled . | . . . . . Allies | -11 -10 -10 -10 -9 -------- Run | Yrd Mat Min Exi Min Total Allies 3 | . . 3 . . Largest Group 3 | . . 3 1 1 Highest-Rated Group 77 | . . 77 31 31 Highest-Rated Ally 31 | . . 31 31 31 Total Orders . | . . . . . Ally Attacks 12 | . . 12 . . Total Damage 233 | . . 233 . . Kills 3 | . . 3 . . Allies Corrupted . | . . . . . Allies Melted . | . . . . . Intel | -11 -10 -10 -10 -9 ------- Run | Yrd Mat Min Exi Min Robot Analysis Total 1 | . 1 . . . Derelict Logs Recovered 1 | . . 1 . . Drone Launches . | . . . . . Drone Recoveries . | . . . . . Exploration | -11 -10 -10 -10 -9 ------------- Run | Yrd Mat Min Exi Min Turns Passed 2930 | 25 1452 1144 161 148 Spaces Moved 1787 | 11 952 592 144 88 Core . | . . . . . Treads . | . . . . . Legs 56 | 11 45 . . . Wheels 1731 | . 907 592 144 88 Hover . | . . . . . Flight . | . . . . . Fastest Speed 80 | 120 80 110 110 110 Average Speed 109 | 120 108 110 110 111 Slowest Speed 155 | 120 120 155 110 155 Overloaded Moves . | . . . . . Propulsion Burnouts . | . . . . . Robots Hopped . | . . . . . Cave-ins Triggered . | . . . . . Exploration Rate (%) 53 | 3 96 98 48 24 Regions Visited 4 Branch Regions 3 Pre-discovered Areas 1 | . . . 1 . Known Exits Taken . | . . . . . Unknown Exits Taken 4 | 1 1 1 1 . Scrap Searched 1 | . . 1 . . Spaces Dug . | . . . . . Terrain Destroyed 41 | . . 2 . 39 Melee . | . . . . . Projectile 2 | . . 2 . . AOE 39 | . . . . 39 Terrain Rammed . | . . . . . Walls Destroyed . | . . . . . Machines Disabled . | . . . . . Actions | -11 -10 -10 -10 -9 --------- Run | Yrd Mat Min Exi Min Total 2432 | 17 1269 877 146 123 Wait 413 | 2 214 173 3 21 Move 1783 | 10 951 591 143 88 Hop . | . . . . . Pick Up 26 | 1 22 3 . . Fast Attach 8 | 1 5 2 . . Attach 10 | . 3 3 . 4 Detach . | . . . . . Swap 24 | . 6 16 . 2 Drop 17 | . 15 2 . . Fire 151 | 3 53 87 . 8 Melee . | . . . . . Ram . | . . . . . Kick . | . . . . . Crush . | . . . . . Escape Stasis . | . . . . . Rewire . | . . . . . Trap . | . . . . . Miscellaneous . | . . . . . Route ------- -11/Scrapyard -10/Materials (discovered 4 exits: [*Mat x3] / [*Min]) -10/Mines (discovered 3 exits: [*Mat x2] / *Exi) -10/Exiles -9/Mines (discovered 1 exit: [*Mat]) History --------- Turn | Location | Event 1 | -11/Scrapyard | Discovered new exit (range 3) 26 | -11/Scrapyard | Entered Materials 28 | -10/Materials | Discovered new exit (range 16) 313 | -10/Materials | Discovered new exit (range 15) 317 | -10/Materials | Build established: Mutant 605 | -10/Materials | Discovered new exit (range 12) 954 | -10/Materials | Discovered new exit (range 5) 1398 | -10/Materials | Central database locked down 1478 | -10/Materials | Entered Mines 1611 | -10/Mines | Discovered new exit (range 13) 1956 | -10/Mines | Excavation squad dispatched 1956 | -10/Mines | A large section of the Mines collapsed 1995 | -10/Mines | System corruption reached 10% 2206 | -10/Mines | Excavation squad dispatched 2293 | -10/Mines | Core integrity fell below 50% 2332 | -10/Mines | Destroyed 7 combat bots 2353 | -10/Mines | Found a hidden stash of uninstalled traps 2360 | -10/Mines | Discovered new exit (range 14) 2468 | -10/Mines | Met a Derelict testing a Signal Generator 2608 | -10/Mines | Learned Materials trap positions 2615 | -10/Mines | Deemed a non-threat by the Exiles lab entrance 2616 | -10/Mines | Discovered new exit (range 5) 2622 | -10/Mines | Entered Exiles 2622 | -10/Exiles | Accompanied by 1 ally 2649 | -10/Exiles | Met 8R-AWN 2669 | -10/Exiles | Met EX-HEX 2712 | -10/Exiles | Met EX-DEC 2716 | -10/Exiles | Learned location of Zion (-6) 2768 | -10/Exiles | Discovered new exit (range 14) 2783 | -10/Exiles | Entered Mines 2783 | -9/Mines | Accompanied by 1 ally 2799 | -9/Mines | YI-UF0 nonchalantly dropped a Grenade Launcher on the ground 2834 | -9/Mines | Discovered new exit (range 8) 2838 | -9/Mines | Assembled infested the area 2928 | -9/Mines | Core integrity fell below 20% 2931 | -9/Mines | Destroyed by YI-UF0 with YI-UF0's Doublenader Last Messages --------------- 02913_ as-01619 destroyed. 02916_ TP 02925_ Grenade Launcher destroyed. 02925_ as-47433 destroyed. 02926_ The unstable cave ceiling collapses. 02927_ Grenade Launcher destroyed. 02927_ Med. Armor Plating destroyed. 02927_ Ion Engine destroyed. 02928_ The unstable cave ceiling collapses. Map ----- +----------------------------------------------------+ | ??????????????????# #????????????????????? | | ??????????????????# #????????????????????? | | ??????????????????# #????????????????????? | | ??????????????????## ##????????????????????? | | ???????????????????# #??????# #???????????? | | ???????????????????# #??????# ???????????? | | ???????????????????# #?????? #???????????? | | ???????????????????# #?####?#//##??????????? | | ???????????????????# ## # # ##?????????? | | ???????????????????# # ##????????? | | ??????????????????## # #????????? | | ????????????###### #????????? | | ??????# # #* #????????? | | ????????????###### ! ##????????? | | ?????????????????? g ## ##?????????? | | ?????????????????## ##??????????? | | ????????????????## #???????????? | | ????????????????# # ## #???????????? | | ????????????????## ## #???????????? | | ????????????????# ### ##??????????? | | ????????????????# ## ##?????????? | | ????????????????## ####??????? | | ?????????????????# ##?????? | | ?????????????????# ## #?????? | | ?????????????????# # # ### ##????? | | ?????????????????## @ #??# ##???? | | ?????????????????# #??## #???? | | ?????????????????## ###???# #???? | | ??????????????????## #????## ##???? | | ???????????????????# ##????# ##????? | | ???????????????????# # ##?????# ##????? | | ???????????????????#########??????## #????? | | ???????????????????????????????????# #????? | | ??????????????????????????????????## ##???? | | ???????????????????????????######## ##??? | | ????????????????????? ### ! #??? | | ????????????????????? < ##??? | | ????????????????????? ###???? | | ????????????????????? ##?????? | | ????????????????????? ### ##??????? | | ????????????????????????????# #####????????? | | ????????????????????????????# ?????????????? | | ????????????????????????????# ??????????????? | | ???????????????????????????? ???????????????? | | ??????????????????????????? ????????????????? | | ????????????????????????????????????????????? | | ????????????????????????????????????????????? | | ????????????????????????????????????????????? | | ????????????????????????????????????????????? | | ????????????????????????????????????????????? | +----------------------------------------------------+ Best States ------------- Heat Dissipation 25 Energy Generation 10 Energy Capacity 250 Matter Stores 300 Matter Capacity 300 Sight Range 16 Terrain Scan Density 10 Armor Coverage 225 Evasion (%) 55 Item Schematics ----------------- ECM Suite | -10/Materials | Hacked Sml. Storage Unit | -10/Materials | Hacked Robot Schematics ------------------ None Fabricated ------------ Nothing Alien Tech Used ----------------- None Achievements -------------- None Challenges ------------ None Game ------ Seed PiercingCompactStripper Manual? 0 Play Time 00:27:03 Cumulative 76.8 hours Start 2024.05.03 @ 21:14:25 End 2024.05.03 @ 21:40:40 Sessions 1 Manual Loads 0 Difficulty Rogue Special Mode None Game No. 54 Rogue 54 Adventurer 0 Explorer 0 Win Type - Total 1 Types 1/0/0/0/0/0/0/0/0 Lore% 51 Gallery% 44 Achievement% 42 Wizard Run 0 Options --------- Layout 0 ASCII 0 Keyboard 0 Movement Mouse Keybinds 0 Fullscreen 1 Font 18/SmallcapsGlow Map View 76x50 Zoom Use 0% Tactical HUD 1 Map Filters NONE Filters NONE Steam 1 RUN: ed17fb30-cbe5-4675-906f-d0fb04e7d44b